[Event "Azerbaijan-ch 1st League 2025"]
[Site "Baku"]
[Date "2025.01.10"]
[Round "5.1"]
[White "Atakishiyev, Elmar"]
[Black "Ibrahimli, Murad"]
[Result "1/2-1/2"]
[Annotator "TA"]
[ECO "D31"]
[WhiteElo "2408"]
[BlackElo "2415"]
[PlyCount "63"]
[EventDate "2025.01.05"]
[EventType "swiss"]
[EventCountry "AZE"]
[SourceTitle "playchess.com"]
[Source "ChessBase"]
[SourceQuality "1"]
[TimeControl "40/5400+30:1800+30"]

{[%evp 10,63,50,20,32,0,0,0,0,0,0,-6,0,0,31,17,52,41,25,37,14,18,10,0,0,0,-3,-73,-66,-60,-68,-83,-4,-7,19,0,87,0,12,6,0,0,43,39,54,52,48,51,54,68,68,40,61,62,71,35]} 1. d4 {[%emt 0:05:07]} d5 {[%emt 0:00:07]} 2. Nf3 {[%emt 0:00:13]} c6 {[%emt 0:02:26]} 3. c4 {[%emt 0:00:53]} dxc4 {[%emt 0:04:31]} 4. e3 {[%emt 0:02:19]} b5 {[%emt 0:04:51]} 5. a4 {[%emt 0:00:17]} e6 {[%emt 0:00:11]} 6. Nc3 {[%emt 0:04:16][%mdl 1024] White has compensation.} Qb6 {[%emt 0:04:26]} 7. Be2 {[%emt 0:06:19]} Nf6 {[%emt 0:02:46]} 8. O-O {[%emt 0:00:09]} Bb4 {[%emt 0:14:14]} 9. Na2 {[%emt 0:20:13]} Be7 {[%emt 0:10:54]} 10. b3 {[%emt 0:00:34]} cxb3 {[%emt 0:00:31]} 11. Qxb3 {[%emt 0:00:05]} a6 {[%emt 0:05:27]} 12. Ba3 {[%emt 0:01:49]} Ra7 {[%emt 0:00:15]} 13. Rfc1 {[%emt 0:05:47]} O-O {[%emt 0:00:28]} 14. Bxe7 {[%emt 0:00:51]} Rxe7 {[%emt 0:00:04]} 15. Qa3 {[%emt 0:00:10]} Rc7 {[%emt 0:06:11]} 16. Rc2 {[%emt 0:06:39]} Nbd7 {[%emt 0:06:25]} 17. Rac1 {[%emt 0:01:00]} Bb7 {[%emt 0:00:25]} 18. Ne1 {[%emt 0:04:01]} (18. axb5 $11 axb5 19. Qb2) 18... Rfc8 $17 {[%emt 0:02:59]} 19. a5 {[%emt 0:04:34]} Qa7 {[%emt 0:00:09]} 20. Nd3 {[%emt 0:00:05]} h6 {[%emt 0:08:20]} ({Better is} 20... c5 $17 {And now ...c4 would win.} 21. Nxc5 Nxc5) 21. Bf3 $11 {[%emt 0:00:56]} Ba8 {[%emt 0:02:19][%cal Oc6c5]} 22. h3 {[%emt 0:02:03]} Nd5 {[%emt 0:23:31]} (22... c5 $11 {remains equal.} 23. dxc5 Bxf3 24. gxf3 Qa8) 23. Nc5 {[%emt 0:07:06]} (23. Bxd5 $16 exd5 (23... cxd5 $2 24. Rxc7 Rxc7 25. Qe7 $18) 24. Qd6) 23... Nxc5 {[%emt 0:00:00]} 24. Qxc5 {[%emt 0:01:39]} Qxc5 {[%emt 0:00:00]} 25. Rxc5 {[%emt 0:00:04]} Nf6 {[%emt 0:00:00][%cal Bd5f6,Bf6d7,Bd7b8][%mdl 32]} 26. Nb4 {[%emt 0:00:36][%csl LRa6,LRc6][%cal Ba2b4,Bb4d5,Bd5b6][%mdl 32]} Nd7 {[%emt 0:00:00]} 27. R5c2 $1 {[%emt 0:01:55][%cal Rf3c6]} ({Inferior is} 27. Nxa6 Ra7 28. Bxc6 Nxc5 29. Bxb5 Bb7 (29... Rb7 30. Bd3 $15) 30. Nxc5 Rxa5 $17) 27... Nb8 {[%emt 0:00:00] [#]} 28. d5 $1 {[%emt 0:08:03]} exd5 {[%emt 0:00:00] [#]} (28... Kf8 29. dxc6) 29. Nxd5 $1 {[%emt 0:00:21]} Ra7 $1 {[%emt 0:00:00]} 30. Rd2 {[%emt 0:05:27] Black must now prevent Nb6.} Kf8 {[%emt 0:00:00]} ({But not} 30... Rd8 $2 31. Nf6+ Kf8 32. Rxd8+ $18) 31. Nb6 {[%emt 0:00:06] White has more active pieces.} Re8 {[%emt 0:00:00]} 32. Kf1 {[%emt 0:04:22]} 1/2-1/2

[Event "Azerbaijan-ch 1st League 2025"]
[Site "Baku"]
[Date "2025.01.10"]
[Round "5.2"]
[White "Ahmad, Khagan"]
[Black "Aslanov, Umid"]
[Result "1/2-1/2"]
[Annotator "TA"]
[ECO "E01"]
[WhiteElo "2406"]
[BlackElo "2250"]
[PlyCount "205"]
[EventDate "2025.01.05"]
[EventType "swiss"]
[EventCountry "AZE"]
[SourceTitle "playchess.com"]
[Source "ChessBase"]
[SourceQuality "1"]
[TimeControl "40/5400+30:1800+30"]

{[%evp 19,205,28,7,-6,3,-4,0,0,0,0,0,0,7,12,27,12,14,13,11,8,10,5,6,7,13,14,10,7,41,39,37,20,83,90,94,94,97,116,93,116,115,59,58,54,54,66,58,63,60,64,58,60,81,81,81,58,58,58,58,58,58,0,64,64,81,81,81,81,81,81,81,81,81,81,81,81,81,81,81,81,81,81,81,81,81,81,81,81,81,81,81,81,81,81,81,81,81,81,81,81,81,81,81,0,81,81,81,81,81,81,81,81,81,81,81,81,81,81,81,81,81,81,81,81,81,81,81,81,81,81,81,81,81,81,81,81,81,0,81,68,81,0,7,0,6,0,0,0,0,0,0,0,0,0,0,0,0,0,0,0,0,0,0,0,0,0,0,0,0,0,0,0,0,0,0,0,0,0,0,0,0,0,37,37,37,0,37,0]} 1. Nf3 {[%emt 0:00:11]} d5 {[%emt 0:00:01]} 2. d4 {[%emt 0:00:05]} Nf6 {[%emt 0:00:07]} 3. c4 {[%emt 0:01:41]} e6 {[%emt 0:00:05]} 4. g3 {[%emt 0:00:03]} Bb4+ {[%emt 0:00:16]} 5. Bd2 {[%emt 0:00:03]} Bd6 {[%emt 0:00:09]} 6. Bg2 {[%emt 0:00:21]} O-O {[%emt 0:00:15]} 7. Bg5 {[%emt 0:00:08]} c6 {[%emt 0:00:22]} 8. Nc3 {[%emt 0:01:00]} Nbd7 {[%emt 0:00:22]} 9. O-O {[%emt 0:00:13]} h6 {[%emt 0:00:14]} 10. Bxf6 {[%emt 0:00:11]} Nxf6 {[%emt 0:00:06]} 11. e3 {[%emt 0:00:43]} b6 {[%emt 0:01:22]} 12. Qb3 {[%emt 0:06:22]} Qe7 {[%emt 0:09:57]} 13. Rfc1 {[%emt 0:03:30]} Bb7 {[%emt 0:03:40]} 14. cxd5 {[%emt 0:00:06]} exd5 {[%emt 0:04:16]} 15. Nh4 {[%emt 0:02:26][%cal Oe3e4]} Qd7 {[%emt 0:07:17]} 16. a4 {[%emt 0:01:10][%cal Ba2a4,Ba4a5,Ba5a6][%mdl 32]} Rab8 {[%emt 0:15:43]} 17. a5 {[%emt 0:03:22]} b5 {[%emt 0:03:45]} 18. a6 {[%emt 0:02:30]} Bc8 {[%emt 0:00:38]} 19. e4 {[%emt 0:01:25]} b4 {[%emt 0:05:54] [#]} 20. Nxd5 $1 {[%emt 0:00:27]} cxd5 {[%emt 0:00:07]} 21. e5 {[%emt 0:00:05]} Be7 $1 {[%emt 0:01:19]} (21... g5 22. Nf3 $14) 22. exf6 {[%emt 0:00:11]} Bxf6 {[%emt 0:00:04]} 23. Nf3 {[%emt 0:04:56]} Re8 {[%emt 0:04:48]} 24. Rc5 {[%emt 0:02:36]} Rb6 {[%emt 0:05:40]} 25. Rxd5 {[%emt 0:12:17]} Qg4 {[%emt 0:06:17]} (25... Qe7 $11) 26. h3 $16 {[%emt 0:01:33]} Qg6 {[%emt 0:00:16]} 27. Ne5 {[%emt 0:00:18]} Bxe5 {[%emt 0:00:55]} 28. Rxe5 {[%emt 0:00:02]} Rxe5 {[%emt 0:01:30]} 29. dxe5 {[%emt 0:00:02]} Bxa6 {[%emt 0:00:42]} 30. Qd5 {[%emt 0:01:56]} (30. Qd1 $16) 30... Bb7 $1 $14 {[%emt 0:05:58]} 31. Qd8+ {[%emt 0:00:37]} Kh7 {[%emt 0:00:01]} 32. Rxa7 {[%emt 0:00:27]} Bxg2 {[%emt 0:01:02]} 33. Kxg2 {[%emt 0:00:03][%cal Oa7f7][%mdl 4096] Endgame KQR-KQR. White is a pawn up.} Qe4+ {[%emt 0:01:59]} 34. Kh2 {[%emt 0:02:40]} Rc6 {[%emt 0:00:05]} 35. Qd1 {[%emt 0:07:02] Prevents Rc1} Rc2 {[%emt 0:10:27]} 36. Rxf7 {[%emt 0:00:24]} Rxb2 {[%emt 0:00:01]} 37. Rf8 {[%emt 0:16:44]} Rb1 {[%emt 0:06:19]} 38. Rf4 {[%emt 0:00:07]} Rxd1 {[%emt 0:00:26]} 39. Rxe4 {[%emt 0:00:12] KR-KR. White is a pawn up.} b3 {[%emt 0:00:27] White must now prevent ...b2.} 40. Re2 {[%emt 0:00:00]} (40. Rb4 $14) 40... Rc1 {[%emt 0:00:00]} (40... Kg8 $1 $11) 41. e6 $1 {[%emt 0:03:47]} Rc2 {[%emt 0:07:27]} 42. Rxc2 {[%emt 0:00:05]} bxc2 $16 {[%emt 0:00:04] KP-KP. White is a pawn up.} 43. e7 {[%emt 0:00:07]} c1=Q {[%emt 0:00:05]} 44. e8=Q {[%emt 0:00:05] KQ-KQ. White is a pawn up. Prevents Qe1} (44. e8=B Qf1 45. Bc6 Qxf2+ 46. Bg2 g5 47. Kh1 Kg6 (47... Qxg3 $2 48. Bf1 $19) 48. g4 Kf6 49. Kh2 Ke5 (49... Qf4+ {is a self mate.} 50. Kg1 Qe3+ 51. Kh2 Qf2 52. h4 gxh4 53. g5+ Kxg5 54. Kh1 Kg4 55. Bd5 Kg3 56. Bg8 Qh2#) 50. Kh1 Kf4 51. Kh2 Qe1 52. Bc6 Qg3+ 53. Kh1 Qf2 (53... Qxh3+ 54. Kg1 Kg3 55. Bd5 Qh2+ 56. Kf1 Qf2#) 54. Bd7 Kg3 55. Bf5 Qh2#) 44... Qc2 {[%emt 0:00:13]} 45. Kg2 {[%emt 0:00:06]} Qd3 {[%emt 0:00:11]} 46. Qc6 {[%emt 0:00:29]} Qf5 {[%emt 0:00:20]} 47. Qf3 {[%emt 0:00:11]} Qe5 {[%emt 0:01:01]} 48. Qd3+ {[%emt 0:00:00]} Kh8 {[%emt 0:00:07]} 49. h4 {[%emt 0:00:40]} h5 {[%emt 0:01:56]} 50. Qe3 {[%emt 0:00:53]} Qf5 {[%emt 0:00:27]} 51. Qg5 {[%emt 0:00:33]} Qe4+ {[%emt 0:00:09]} 52. Kh2 {[%emt 0:00:03]} g6 {[%emt 0:00:57]} 53. Qf4 {[%emt 0:00:15]} Qc2 {[%emt 0:02:43]} 54. Qf3 {[%emt 0:01:11]} Kh7 {[%emt 0:00:16]} 55. Kg2 {[%emt 0:00:06]} Qc4 {[%emt 0:00:41]} 56. Qb7+ {[%emt 0:00:07]} Kh8 {[%emt 0:00:10]} 57. Qb8+ {[%emt 0:00:28]} Kh7 {[%emt 0:00:04]} 58. Qe5 {[%emt 0:00:11]} Qc6+ {[%emt 0:00:17]} 59. Kh2 {[%emt 0:00:18]} Qf3 {[%emt 0:00:35]} 60. Qf4 {[%emt 0:00:02]} Qd3 {[%emt 0:00:23]} 61. Kg2 {[%emt 0:00:04]} (61. Qf7+ $16 Kh8 62. Qf4) 61... Qc2 {[%emt 0:00:12]} (61... Qd5+ $11 {remains equal.} 62. Qf3 Qd7) 62. Qf7+ {[%emt 0:00:07]} Kh8 {[%emt 0:00:04]} 63. Qd5 {[%emt 0:00:07]} Kh7 {[%emt 0:00:04]} 64. Kf3 {[%emt 0:00:19]} Qc3+ {[%emt 0:00:04]} 65. Ke2 $1 {[%emt 0:00:44]} Qc2+ {[%emt 0:00:06]} 66. Ke3 $1 {[%emt 0:00:11] White is more active.} Qc3+ {[%emt 0:00:04]} 67. Qd3 $1 {[%emt 0:00:07]} Qe5+ {[%emt 0:00:07]} 68. Qe4 {[%emt 0:00:09]} Qc3+ {[%emt 0:00:08]} 69. Ke2 {[%emt 0:00:08]} Qb2+ {[%emt 0:00:04]} 70. Kf3 {[%emt 0:00:05]} Qc3+ {[%emt 0:00:28]} 71. Kg2 {[%emt 0:00:03]} Qf6 {[%emt 0:00:36]} 72. Qd5 {[%emt 0:00:40]} Qe7 {[%emt 0:00:10]} 73. Kf3 {[%emt 0:00:54]} Qf6+ {[%emt 0:00:02] [#]} 74. Ke2 $1 {[%emt 0:00:26]} Qb2+ {[%emt 0:00:05] [#]} 75. Qd2 $1 {[%emt 0:00:04]} Qe5+ {[%emt 0:00:03]} 76. Qe3 {[%emt 0:00:15]} Qb2+ {[%emt 0:00:04]} 77. Kf3 {[%emt 0:00:05]} Qf6+ {[%emt 0:01:04]} 78. Ke2 {[%emt 0:00:12]} Qb2+ {[%emt 0:00:03]} 79. Kd3 {[%emt 0:00:07]} Qf6 {[%emt 0:01:46]} 80. Kc4 {[%emt 0:00:12]} (80. Qa7+ $16 Kh6 81. Qd4 (81. Qe3+ Kh7 $14) 81... Qa6+ 82. Ke3 Qa3+ 83. Ke2) 80... Qc6+ {[%emt 0:00:19]} 81. Qc5 {[%emt 0:00:02]} Qe4+ {[%emt 0:00:49]} 82. Kb5 {[%emt 0:00:09]} Qb7+ {[%emt 0:00:09]} 83. Qb6 {[%emt 0:00:07]} Qd5+ {[%emt 0:00:10]} 84. Ka6 {[%emt 0:00:07]} Kh6 {[%emt 0:01:22]} 85. Ka7 {[%emt 0:00:53]} Qd7+ {[%emt 0:00:16]} 86. Kb8 {[%emt 0:00:17] and Qe3+ would now be decisive} Qe8+ {[%emt 0:00:06]} 87. Kc7 {[%emt 0:00:08]} Qe7+ {[%emt 0:00:10]} 88. Kc8 {[%emt 0:00:08]} Qe8+ {[%emt 0:00:37]} 89. Qd8 {[%emt 0:00:03]} Qc6+ {[%emt 0:02:18]} 90. Kb8 {[%emt 0:00:05][%cal Rd8h8]} Qb5+ {[%emt 0:00:31]} 91. Kc7 {[%emt 0:00:06][%cal Rd8h8]} Qc5+ {[%emt 0:01:36]} 92. Kd7 {[%emt 0:00:17][%cal Rd8h8]} Qa7+ {[%emt 0:00:27]} 93. Qc7 {[%emt 0:01:03]} Qa4+ {[%emt 0:03:59]} 94. Ke7 {[%emt 0:00:20]} Qa3+ {[%emt 0:01:56]} 95. Kf7 {[%emt 0:01:06]} Qa2+ {[%emt 0:00:17]} 96. Kf6 $1 {[%emt 0:00:05][%csl Gf6][%cal Rc7g7]} Qb2+ {[%emt 0:00:39]} 97. Qe5 {[%emt 0:00:06]} Qb6+ $1 {[%emt 0:02:25]} 98. Kf7 {[%emt 0:00:03][%cal Re5h8]} Qa7+ {[%emt 0:03:07]} 99. Kf8 {[%emt 0:00:08] Intending Qe3+ and mate.} Qa8+ {[%emt 0:00:36]} 100. Qe8 {[%emt 0:00:14]} Qa1 {[%emt 0:01:11][%csl Gh6][%cal Ra1g7]} 101. Qe3+ {[%emt 0:01:35]} Kh7 {[%emt 0:00:02]} 102. Qe7+ {[%emt 0:00:17]} Kh6 {[%emt 0:00:19]} 103. Kg8 {[%emt 1:11:56]} 1/2-1/2

[Event "Azerbaijan-ch 1st League 2025"]
[Site "Baku"]
[Date "2025.01.10"]
[Round "5.3"]
[White "Hamidov, Allahverdi"]
[Black "Ahmadov, Fariz"]
[Result "1/2-1/2"]
[Annotator "TA"]
[ECO "A52"]
[WhiteElo "2200"]
[BlackElo "2224"]
[PlyCount "89"]
[EventDate "2025.01.05"]
[EventType "swiss"]
[EventCountry "AZE"]
[SourceTitle "playchess.com"]
[Source "ChessBase"]
[SourceQuality "1"]
[TimeControl "40/5400+30:1800+30"]

{[%evp 9,89,29,34,28,31,19,16,-21,28,31,47,35,29,21,26,0,0,6,62,55,65,58,52,50,50,38,77,67,63,72,94,86,76,94,97,94,74,86,133,140,142,-8,0,0,0,-8,140,140,140,140,140,62,83,88,161,155,145,55,61,44,58,27,125,58,56,8,22,0,0,0,0,0,0,0,0,0,0,0,0,0,0,0]} 1. d4 {[%emt 0:00:04]} Nf6 {[%emt 0:01:10][%cal Bg8f6,Bf6g4,Bg4e5,Be5g6,Bg6h4][%mdl 32]} 2. c4 {[%emt 0:00:04]} e5 {[%emt 0:00:38]} 3. dxe5 {[%emt 0:00:06]} Ng4 {[%emt 0:00:05]} 4. e3 {[%emt 0:00:31]} Nxe5 {[%emt 0:00:07]} 5. f4 {[%emt 0:00:04]} Ng6 {[%emt 0:00:40]} 6. h4 {[%emt 0:00:06]} Nxh4 {[%emt 0:02:14]} 7. e4 {[%emt 0:00:10] Inhibits Nf5.} Ng6 {[%emt 0:01:23]} 8. Nf3 {[%emt 0:02:00][%mdl 1024] White has compensation.} Nc6 {[%emt 0:00:16]} (8... Bb4+ $142 9. Bd2 Bxd2+ 10. Qxd2 d6) 9. a3 $11 {[%emt 0:22:08]} a5 {[%emt 0:06:22]} 10. Nc3 {[%emt 0:02:37]} Bc5 {[%emt 0:01:27] Prevents Be3.} 11. Qd3 {[%emt 0:09:01]} d6 {[%emt 0:03:42]} 12. Bd2 {[%emt 0:12:00]} Bg4 {[%emt 0:02:28]} 13. Nd5 {[%emt 0:01:17]} Bxf3 {[%emt 0:05:22]} ({Better is} 13... h6 $11) 14. gxf3 $14 {[%emt 0:01:40]} Nd4 {[%emt 0:03:00]} 15. Bc3 {[%emt 0:05:29]} c6 $1 {[%emt 0:00:21]} 16. Bxd4 {[%emt 0:00:24]} cxd5 {[%emt 0:03:14]} 17. Bxc5 {[%emt 0:08:38]} (17. Bxg7 {is interesting.} Nxf4 18. Qd2 Rg8 19. Bh6) 17... dxc5 {[%emt 0:00:10]} 18. cxd5 {[%emt 0:00:33]} Nxf4 {[%emt 0:04:26]} 19. Qb5+ {[%emt 0:11:02]} Qd7 {[%emt 0:03:44]} 20. Qxc5 {[%emt 0:00:14]} Rc8 {[%emt 0:00:24]} 21. Qe3 {[%emt 0:04:51]} (21. Qxa5 $6 O-O 22. Qd2 Qd6 $11) 21... Qd6 {[%emt 0:03:54]} 22. e5 $1 {[%emt 0:05:58][%cal Be4e5,Be5d6,Bd6d7][%mdl 32]} Nxd5 {[%emt 0:01:14]} 23. Bb5+ {[%emt 0:01:36]} Kf8 {[%emt 0:00:36]} (23... Kd8 $142 24. Qe4 f5) 24. exd6 $16 {[%emt 0:00:17] White threatens d7 and mate.} Nxe3 {[%emt 0:00:04]} 25. Kd2 {[%emt 0:04:44]} (25. Kf2 $16 Nf5 26. Rhd1 (26. d7 Rd8 $18)) 25... Nd5 {[%emt 0:02:56]} 26. Rac1 {[%emt 0:01:03]} Rd8 $1 {[%emt 0:00:29][%cal Od5b6]} 27. Rhe1 {[%emt 0:02:48][%cal Oc1c8]} g6 {[%emt 0:02:22] [#]} (27... Ne7 $11 28. Rc7 (28. Rxe7 $2 Rxd6+ 29. Ke2 Kxe7 $19) (28. d7 Nc6 $17) 28... Rxd6+ 29. Kc2 Re6 (29... Nc6 30. Rc8+ Rd8 31. Rxd8+ Nxd8 32. Re8#) 30. Rxb7 g5 (30... Rxe1 $2 31. Rb8+ $18) 31. Rxe6 fxe6) 28. Re8+ $1 {[%emt 0:02:04][%mdl 512]} Kg7 {[%emt 0:12:44]} 29. d7 $36 {[%emt 0:00:07][%mdl 2048] White has strong initiative. White has more active pieces.} Nb6 {[%emt 0:01:20]} 30. Rxh8 {[%emt 0:00:19]} (30. Ke3 $16) 30... Kxh8 {[%emt 0:00:11][%mdl 4096] Endgame KRB-KRN. Black is a pawn up.} 31. Rc7 {[%emt 0:01:01]} Kg7 {[%emt 0:00:09]} (31... h5 $16 {was necessary.}) 32. Rxb7 $18 {[%emt 0:00:09]} Nd5 {[%emt 0:00:02] [#]} 33. Bc6 {[%emt 0:01:15]} (33. b4 $1 $16 {[%cal Rb4a5]} axb4 34. a4) 33... Ne7 $14 {[%emt 0:00:31]} 34. Ba4 $1 {[%emt 0:00:28]} h5 {[%emt 0:00:16]} 35. Ke1 {[%emt 0:00:30]} Nf5 {[%emt 0:02:31] [#]} (35... Kf8 $11 {keeps the balance.}) 36. b4 {[%emt 0:01:45]} (36. Kf2 $1 $16) 36... axb4 {[%emt 0:00:45]} 37. axb4 {[%emt 0:00:10]} (37. Rxb4 $14 {is more appropriate.} Kf8 38. Bb5) 37... Nd4 {[%emt 0:00:37]} 38. Kf2 {[%emt 0:01:38]} Ne6 {[%emt 0:37:36]} 39. Bc6 {[%emt 0:00:36]} Kf6 {[%emt 0:00:00]} 40. b5 {[%emt 0:00:00] and b6 would now be decisive} Ke7 {[%emt 0:00:00]} 41. Ra7 {[%emt 0:04:55]} Kd6 {[%emt 0:00:00]} 42. Ra1 {[%emt 0:02:49]} Nc5 {[%emt 0:00:00]} 43. Rd1+ {[%emt 0:01:59]} Kc7 {[%emt 0:00:00]} 44. f4 {[%emt 0:00:54]} Nxd7 {[%emt 0:00:00]} 45. Re1 {[%emt 0:01:04]} 1/2-1/2

[Event "Azerbaijan-ch 1st League 2025"]
[Site "Baku"]
[Date "2025.01.10"]
[Round "5.4"]
[White "Ughuzov, Ravan"]
[Black "Suleymanli, Suleyman"]
[Result "1/2-1/2"]
[Annotator "TA"]
[ECO "C02"]
[WhiteElo "2250"]
[BlackElo "2280"]
[PlyCount "85"]
[EventDate "2025.01.05"]
[EventType "swiss"]
[EventCountry "AZE"]
[SourceTitle "playchess.com"]
[Source "ChessBase"]
[SourceQuality "1"]
[TimeControl "40/5400+30:1800+30"]

{[%evp 14,85,30,17,35,7,40,32,34,11,33,13,24,-14,-11,-15,0,-14,-6,-54,-16,-102,-110,-128,-68,-79,-70,-65,-61,-68,-81,-81,-83,-83,-78,-57,-77,-83,-85,-79,-69,-161,-164,-165,-163,-156,-162,-152,0,0,0,0,0,0,0,0,0,0,0,0,314,0,0,0,0,0,0,0,0,0,0,0,0,0]} 1. e4 {[%emt 0:00:03]} e6 {[%emt 0:00:04]} 2. d4 {[%emt 0:00:22]} d5 {[%emt 0:00:05]} 3. e5 {[%emt 0:00:06]} c5 {[%emt 0:00:03]} 4. c3 {[%emt 0:00:06]} Ne7 {[%emt 0:00:03]} 5. Nf3 {[%emt 0:00:24]} Nd7 {[%emt 0:00:00]} 6. Bd3 {[%emt 0:05:16]} Nc6 {[%emt 0:00:13]} 7. O-O {[%emt 0:00:30]} Be7 {[%emt 0:00:30]} 8. a3 {[%emt 0:01:41]} a5 {[%emt 0:02:38]} 9. Be3 {[%emt 0:15:40]} Qb6 {[%emt 0:01:18]} 10. b3 {[%emt 0:05:56]} O-O {[%emt 0:09:14]} 11. Bc2 {[%emt 0:06:15]} f5 {[%emt 0:11:07]} 12. exf6 {[%emt 0:18:35]} Nxf6 {[%emt 0:01:27]} 13. Ne5 {[%emt 0:03:37]} Bd6 {[%emt 0:10:55]} 14. Ng4 {[%emt 0:04:33]} Bd7 {[%emt 0:08:28]} 15. Qd3 {[%emt 0:07:55]} g6 {[%emt 0:01:29]} 16. h3 {[%emt 0:07:39]} (16. Nxf6+ $11 {feels stronger.} Rxf6 17. dxc5 Bxc5 18. Bxc5 Qxc5 19. Nd2) 16... Rac8 {[%emt 0:16:06]} 17. Rc1 {[%emt 0:07:03]} (17. Nxf6+ $11 Rxf6 18. dxc5 Bxc5 19. Bxc5 Qxc5 20. Qg3) 17... Nxg4 $17 {[%emt 0:04:12]} 18. hxg4 {[%emt 0:00:05]} Rf7 {[%emt 0:05:13]} (18... cxd4 $17 19. cxd4 Bf4) 19. Nd2 $15 {[%emt 0:02:24]} cxd4 {[%emt 0:01:38]} 20. cxd4 {[%emt 0:00:04] [#]} Bxa3 $1 {[%emt 0:01:38]} 21. Rxa3 {[%emt 0:00:56]} Nb4 {[%emt 0:00:01]} 22. Qe2 {[%emt 0:01:13] Nf3 is the strong threat.} Nxc2 {[%emt 0:05:35]} (22... Rxc2 23. Rca1 $11) 23. Ra2 {[%emt 0:00:40]} Nxd4 {[%emt 0:01:48]} 24. Rxc8+ {[%emt 0:00:16]} Bxc8 {[%emt 0:00:01]} 25. Bxd4 {[%emt 0:03:21]} Qxd4 {[%emt 0:00:03]} 26. Rxa5 {[%emt 0:00:05]} Rc7 {[%emt 0:01:26]} 27. Ra8 {[%emt 0:01:17]} ({White should play} 27. Ra4 $15 Rc1+ 28. Kh2) 27... Rc1+ $1 $19 {[%emt 0:01:43]} 28. Nf1 {[%emt 0:00:01]} Kf7 {[%emt 0:06:15]} 29. g5 {[%emt 0:04:00]} Ke7 {[%emt 0:03:29]} 30. Ra4 {[%emt 0:00:44] [#]} Qd1 $2 {[%emt 0:01:01]} ({Black should try} 30... Qc3 $1 $17 {[%cal Oc8d7] Threatens to win with ...Bd7!.} 31. Rh4 Bd7 (31... Qxb3 $2 32. Qe5 $18) 32. Rxh7+ Kd6) 31. Qb5 $11 {[%emt 0:01:06]} Bd7 {[%emt 0:06:16]} 32. Qb4+ {[%emt 0:00:04]} Kf7 {[%emt 0:01:24]} 33. Qf4+ {[%emt 0:00:35]} Kg8 {[%emt 0:00:58]} (33... Ke8 $5 34. Ra8+ $8 Bc8 $11) 34. Ra8+ {[%emt 0:01:02]} Bc8 {[%emt 0:00:01]} 35. Qf6 {[%emt 0:01:04] Dancing on a razor blade.} Qxf1+ {[%emt 0:00:47]} 36. Kh2 {[%emt 0:00:00]} Qe2 $2 {[%emt 0:00:44][%mdl 8192] [#]} (36... Qe1 $11) 37. Qd8+ $2 {[%emt 0:02:22]} ({Only move:} 37. Ra4 $1 $18 {[%cal Ra4f4] White threatens Rf4 and mate.} Qh5+ 38. Kg3) 37... Kf7 {[%emt 0:00:03]} 38. Rxc8 {[%emt 0:00:11][%cal Rd8d7]} Qe5+ {[%emt 0:00:43]} (38... Qh5+ 39. Kg3 Rxc8 40. Qd7+ Kf8 41. Qxc8+ Ke7 42. Qxb7+ Kd8 43. Qa8+ Kd7 44. Qa7+ Kd6 45. Qa6+ Kc5 46. Qa5+ (46. Qxe6 Qxg5+ 47. Kf3 Kb4 $11) 46... Kc6 47. Qa8+ Kb6 48. Qd8+ Kb5 49. Qb8+ Kc5 50. b4+ Kc4 51. Qe5) 39. g3 {[%emt 0:00:06][%cal Rd8d7]} Rxc8 {[%emt 0:00:29]} 40. Qd7+ {[%emt 0:00:00]} Kf8 {[%emt 0:00:00]} 41. Qxc8+ {[%emt 0:00:03]} Ke7 {[%emt 0:00:56]} 42. Qxb7+ {[%emt 0:00:05]} Kd8 {[%emt 0:01:56]} 43. Qb6+ {[%emt 0:02:05]} 1/2-1/2